bitfinex/quotes_ETHUSD_20250722
["timestamp","ask_amount","ask_price","bid_price","bid_amount"]
[1753193675828,2.72376916,3671.4,3670.9,3.0]
[1753193676028,0.2978,3672.0,3671.0,5.105]
[1753193676225,2.72374468,3671.5,3670.8,2.72418535]
[1753193676475,0.30210023,3671.9,3670.7,3.0]
[1753193676772,2.72393349,3671.2,3670.5,5.72440124]
[1753193676943,2.72338571,3671.9,3670.3,0.811]
[1753193677138,2.72406818,3671.0,3670.5,3.136]
[1753193677557,2.85994614,3671.2,3670.6,5.094]
[1753193677767,2.72402594,3671.1,3670.6,5.094]
[1753193677966,2.72402594,3671.1,3670.5,0.136]
[1753193677967,2.72418244,3670.9,3670.5,0.136]
[1753193678267,2.86014489,3670.9,3670.6,5.089]
[1753193678466,0.136,3670.9,3670.3,3.136]
[1753193678676,0.4402,3670.9,3670.4,5.083]
[1753193678831,2.7243985,3670.6,3670.4,5.083]
[1753193679165,2.72442446,3670.5,3670.4,5.083]
[1753193679670,0.4402,3670.9,3669.8,1.2305]
[1753193679870,2.72481546,3670.0,3669.7,0.136]
[1753193680174,0.136,3670.2,3669.8,5.076]
[1753193680359,0.136,3670.2,3670.1,2.72472139]
[1753193680558,3.18286045,3675.6,3670.1,2.72472139]
[1753193680559,0.136,3670.7,3670.2,3.0]
[1753193680877,0.136,3670.7,3670.3,5.072]
[1753193681242,0.136,3670.7,3670.1,0.136]
[1753193681446,0.136,3670.7,3670.2,8.073]
[1753193681648,0.136,3670.7,3670.3,5.071]
[1753193683146,0.136,3670.7,3670.3,7.79556236]
[1753193683768,0.136,3670.7,3670.3,5.071]
[1753193683981,0.136,3670.7,3670.2,3.0]
[1753193684183,0.136,3670.7,3670.4,5.056]
[1753193685155,0.136,3670.7,3670.5,3.0]
[1753193685356,0.136,3670.7,3670.6,2.72435024]
[1753193685661,0.136,3670.9,3670.6,7.76733958]
[1753193685905,0.136,3670.9,3670.7,5.041]
[1753193686754,0.7991,3671.5,3670.7,7.76524898]
[1753193686953,0.136,3671.1,3670.9,2.7240937]
[1753193687195,0.136,3671.1,3671.0,2.72405339]
[1753193687362,0.4402,3671.8,3671.0,2.72405339]
[1753193687363,2.72317534,3672.2,3671.0,0.4443]
[1753193687588,0.136,3671.8,3671.1,7.75394536]
[1753193687749,0.136,3671.8,3671.1,5.03]
[1753193687951,0.136,3671.8,3671.3,2.72378151]
[1753193688281,3.14543716,3671.8,3671.1,5.03]
[1753193688447,2.72365745,3671.6,3670.9,2.72410578]
[1753193688652,0.136,3671.2,3670.7,2.72422191]
[1753193688879,0.136,3671.2,3671.0,5.026]
[1753193689188,0.4582,3671.2,3671.1,5.024]
[1753193689487,0.136,3671.0,3670.8,2.72414194]
[1753193689662,0.136,3671.0,3670.9,5.021]
[1753193690056,0.136,3671.0,3670.4,2.86048992]
[1753193690257,2.72395747,3671.2,3670.5,5.016]
[1753193690477,0.136,3670.8,3670.6,5.014]
[1753193690662,0.136,3670.8,3670.7,5.014]
[1753193690868,0.136,3670.8,3670.7,7.73827602]
[1753193691657,0.136,3670.8,3670.7,5.012]
[1753193692204,0.136,3670.8,3670.7,5.006]
[1753193692382,0.136,3670.8,3670.5,2.72439559]
[1753193692707,0.7958,3671.5,3671.1,2.72396207]
[1753193692853,0.7958,3671.5,3671.1,2.72393314]
[1753193692854,0.136,3671.2,3671.1,2.72393314]
[1753193693058,4.25202227,3672.1,3671.2,2.72390099]
[1753193693059,0.8211,3672.0,3671.2,2.72390099]
[1753193693366,1.52878,3672.1,3671.1,4.997]
[1753193693367,0.136,3671.8,3671.6,2.72355754]
[1753193693566,0.136,3671.8,3671.7,4.996]
[1753193693769,0.136,3671.8,3671.7,7.74676939]
[1753193693953,0.136,3672.0,3671.7,8.16383405]
[1753193694152,0.136,3672.0,3671.8,2.72343976]
[1753193694390,0.136,3672.0,3671.7,5.4403]
[1753193694553,0.136,3672.0,3671.7,8.16378579]
[1753193694756,0.136,3672.0,3671.8,2.72345757]
[1753193694956,0.136,3672.0,3671.7,4.996]
[1753193695193,0.136,3672.0,3671.4,0.136]
[1753193695404,0.136,3671.8,3671.5,4.983]
[1753193695555,0.136,3671.8,3671.6,4.983]
[1753193696190,2.85947865,3671.8,3671.7,4.98]
[1753193696394,2.72347865,3671.8,3671.7,4.98]
[1753193696593,2.7234156,3671.9,3671.7,4.98]
[1753193696796,2.72345988,3671.8,3671.7,4.98]
[1753193696972,2.72340048,3671.9,3671.7,4.98]
[1753193697504,0.4582,3672.4,3671.7,4.98]
[1753193697700,2.72326619,3672.1,3671.7,4.98]
[1753193698008,2.72328456,3672.1,3671.7,4.98]
[1753193698188,2.72331888,3672.0,3671.7,4.98]
[1753193698496,0.4582,3672.4,3671.1,0.136]
[1753193698497,0.136,3671.7,3671.6,2.72360823]
[1753193698667,0.136,3671.7,3671.6,4.963]
[1753193698861,0.136,3671.7,3671.6,4.962]
[1753193699064,2.85953405,3671.7,3671.1,2.85995211]
[1753193699265,0.136,3671.7,3671.3,2.72382284]
[1753193699464,0.136,3671.7,3671.4,7.68175409]
[1753193699677,0.136,3671.7,3671.4,4.958]
[1753193699898,0.136,3671.7,3671.5,4.956]
[1753193700102,0.136,3671.7,3671.5,7.67967298]
[1753193700268,0.136,3671.7,3671.5,4.956]
[1753193700668,0.4582,3671.6,3670.8,2.72415391]
[1753193700898,0.136,3671.1,3670.7,6.537]
[1753193701196,0.136,3671.1,3670.8,4.948]
[1753193701403,0.136,3671.1,3671.0,2.72405339]
[1753193701578,0.136,3671.4,3671.0,2.75129392]
[1753193701885,0.136,3671.4,3671.1,3.16826247]
[1753193702307,0.136,3671.4,3671.2,7.66688332]
[1753193702480,0.136,3671.4,3670.7,9.39723377]
[1753193702808,0.136,3671.1,3670.8,7.663194]
[1753193703014,0.136,3671.1,3670.9,2.72412335]
[1753193703303,0.136,3671.1,3670.8,4.939]
[1753193703304,0.136,3671.1,3671.0,2.72405339]
[1753193703471,3.52072361,3672.3,3670.9,0.02724127]
[1753193703668,0.136,3671.3,3671.0,2.72399703]
[1753193703893,0.136,3671.3,3671.1,4.932]
[1753193704506,0.136,3671.3,3671.2,7.65090499]
[1753193704904,0.136,3671.3,3671.2,4.925]
[1753193705416,0.136,3671.3,3670.8,3.16845213]
[1753193705571,0.136,3671.3,3670.9,5.3643]
[1753193705776,0.136,3671.3,3671.2,2.72390499]
[1753193705998,0.136,3671.3,3671.2,7.64190499]
[1753193706187,0.136,3671.3,3671.2,8.08620499]
[1753193706579,0.136,3671.8,3671.6,2.72356167]
[1753193706774,0.136,3671.8,3671.2,5.3623]
[1753193706775,0.136,3671.8,3671.7,7.63853405]
[1753193707609,0.136,3671.8,3671.7,4.915]
[1753193707780,0.136,3671.8,3671.7,4.907]
[1753193708191,0.136,3671.8,3671.7,7.63053405]
[1753193708612,0.002,3672.5,3672.0,2.72329977]
[1753193708791,2.72494976,3672.5,3672.1,4.901]
[1753193708994,0.002,3672.5,3672.1,4.901]
[1753193709391,2.72301492,3672.4,3671.5,2.72367103]
[1753193709591,0.136,3671.7,3671.6,7.62360823]
[1753193709804,0.136,3671.7,3671.6,2.72360823]
[1753193710005,0.136,3671.7,3671.6,7.61760823]
[1753193710206,3.64754069,3671.7,3671.1,2.7239771]
[1753193710412,0.136,3671.4,3671.2,4.892]
[1753193710607,0.788,3671.7,3671.3,4.892]
[1753193710791,3.96976433,3671.7,3671.3,4.892]
[1753193710992,0.136,3671.3,3670.7,2.72422425]
[1753193711222,0.136,3671.1,3670.8,7.887]
[1753193711515,0.136,3671.1,3670.9,4.0]
[1753193711723,0.136,3671.1,3670.9,8.887]
[1753193711919,0.136,3671.1,3670.9,4.887]
[1753193712133,0.788,3671.7,3671.0,5.35354053]
[1753193712300,0.136,3671.6,3671.5,2.72368241]
[1753193712627,0.136,3671.6,3671.5,4.881]
[1753193713040,0.136,3671.6,3671.5,2.72368241]
[1753193713246,0.136,3671.6,3671.5,7.60368241]
[1753193713736,0.002,3672.5,3671.6,3.7873]
[1753193714022,0.136,3672.4,3671.8,0.136]
[1753193714180,0.136,3672.4,3672.2,2.72313979]
[1753193714382,0.136,3672.4,3672.3,4.874]
[1753193714696,0.136,3672.4,3672.3,4.872]
[1753193715016,0.136,3672.4,3672.3,7.59508907]
[1753193715220,0.136,3672.4,3672.3,4.867]
[1753193715423,0.136,3672.4,3672.3,7.59008907]
[1753193715635,0.136,3672.4,3671.8,0.136]
[1753193715931,0.136,3672.4,3671.9,4.867]
[1753193716136,0.136,3672.4,3671.9,2.72336903]
[1753193716421,0.136,3672.4,3672.0,4.862]
[1753193716585,0.136,3672.4,3671.8,2.85944834]
[1753193716784,0.136,3672.4,3671.9,8.02567141]
[1753193717020,0.136,3672.4,3672.3,2.72308907]
[1753193717185,0.136,3672.4,3672.3,7.58108907]
[1753193717387,0.136,3672.4,3672.3,4.858]
[1753193717604,0.136,3672.4,3671.8,0.136]
[1753193717917,0.136,3672.0,3671.9,4.851]
[1753193718120,0.002,3672.5,3671.9,4.851]
[1753193718320,2.85923299,3672.2,3671.6,0.9233]
[1753193718529,0.136,3671.8,3671.7,7.57153405]
[1753193718728,0.136,3671.8,3671.7,4.848]
[1753193719713,0.136,3671.8,3671.5,2.72368128]
[1753193720043,0.4612,3672.5,3671.3,0.4481]
[1753193720044,3.48405773,3672.0,3671.6,4.84]
[1753193720213,0.136,3671.7,3671.2,0.136]
[1753193720539,0.136,3671.7,3671.5,2.72363639]
[1753193720695,0.136,3671.7,3671.6,4.839]
[1753193721136,0.7627,3672.4,3671.6,5.2871]
[1753193721434,0.136,3672.0,3671.7,2.72353405]
[1753193721637,0.136,3672.0,3671.8,2.72345809]
[1753193721832,0.136,3672.0,3671.9,4.832]
[1753193723021,0.136,3672.0,3671.9,7.55338571]
[1753193723333,0.136,3672.0,3671.9,4.83]
[1753193723723,0.136,3672.0,3671.9,8.00148571]
[1753193724024,0.136,3672.0,3671.9,5.2781]
[1753193724218,0.136,3672.0,3671.9,8.00148571]
[1753193724420,0.002,3672.4,3671.9,5.53252326]
[1753193724421,0.136,3672.1,3671.9,5.53252326]
[1753193724623,0.136,3672.1,3672.0,2.9777348]
[1753193724809,0.002,3672.4,3672.0,2.9777348]
[1753193724810,0.002,3672.4,3672.1,2.72323738]
[1753193725010,0.138,3672.4,3672.2,7.79151882]
[1753193725210,0.002,3672.4,3672.3,2.97751233]
[1753193725411,0.002,3672.4,3672.3,3.58884322]
[1753193725612,1e-08,3672.4,3672.3,3.58884322]
[1753193725838,2.72176878,3674.1,3672.3,3.58884322]
[1753193725839,0.8189,3674.2,3673.3,0.7546]
[1753193726137,0.136,3673.9,3673.8,2.72197724]
[1753193726339,0.136,3673.9,3673.8,15.36125961]
[1753193726500,0.136,3674.6,3673.8,12.6120626]
[1753193726701,0.4592,3675.4,3673.9,8.50952326]
[1753193727010,2.71972723,3676.9,3674.4,0.136]
[1753193727011,0.136,3675.1,3674.4,0.136]
[1753193727221,0.136,3674.8,3674.5,0.25442326]
[1753193727411,0.136,3674.8,3673.8,7.30856015]
[1753193727412,0.136,3674.8,3674.6,0.25442326]
[1753193727625,0.8189,3674.8,3674.7,0.25390439]
[1753193727842,3.99937256,3674.8,3674.7,0.25390439]
[1753193728026,4.67142426,3674.8,3674.7,0.25390439]
[1753193728336,3.54017256,3674.8,3674.7,0.25390439]
[1753193729102,2.72065338,3675.6,3674.7,0.25390439]
[1753193729103,5.2672,3676.2,3674.7,0.25390439]
[1753193729304,2.72093273,3675.3,3674.8,5.05790439]
[1753193729631,0.4592,3675.8,3674.9,0.25366503]
[1753193729827,0.136,3675.0,3674.9,4.803]
[1753193730033,2.72072045,3675.5,3674.9,6.51906769]
[1753193730228,0.136,3675.6,3675.0,5.05867075]
[1753193730536,2.85666953,3675.6,3675.1,0.25367075]
[1753193730742,0.136,3675.6,3675.2,0.70177075]
[1753193730906,2.72044073,3675.9,3675.3,0.70177075]
[1753193731104,0.66881854,3675.9,3675.0,0.4481]
[1753193731341,0.66881854,3675.9,3675.1,5.05240381]
[1753193731521,2.72066493,3675.6,3675.2,5.05240381]
[1753193731717,0.7882,3676.1,3675.3,0.70150381]
[1753193731911,2.72046889,3675.9,3675.4,5.04840381]
[1753193732107,2.7204175,3676.0,3675.4,4.795]
[1753193732339,0.7882,3676.1,3675.4,5.2431]
[1753193732545,0.7882,3676.1,3674.6,0.7833]
[1753193732842,2.7204222,3675.9,3674.7,5.04633223]
[1753193733045,2.72053076,3675.8,3674.8,5.07354459]
[1753193733249,2.7203482,3676.0,3675.1,2.72101439]
[1753193733544,1.2597,3676.8,3675.3,2.72081421]
[1753193733743,1.2597,3676.8,3675.2,5.51964163]
[1753193733744,2.72048083,3675.9,3675.2,0.4481]
[1753193733947,0.4592,3676.7,3675.4,4.798]
[1753193734113,2.72027224,3676.2,3675.5,5.2431]
[1753193734307,0.42306487,3676.6,3675.5,5.2431]
[1753193734727,2.7204074,3676.0,3675.5,5.2431]
[1753193734931,0.42306487,3676.6,3675.0,0.8153]
[1753193735129,0.8005,3676.8,3675.1,0.25318166]
[1753193735130,2.7202002,3676.2,3675.1,0.25318166]
[1753193735329,2.72086632,3675.3,3675.2,0.25318166]
[1753193735534,2.72126165,3674.8,3674.4,0.7735]
[1753193735834,2.72138464,3674.6,3674.5,9.0401964]
[1753193736527,2.7212392,3674.8,3674.5,5.0401964]
[1753193736734,0.8043,3675.2,3674.5,5.0401964]
[1753193736735,2.72117233,3674.9,3674.6,0.2531964]
[1753193737046,0.8022,3675.7,3674.7,0.2531964]
[1753193737223,2.72085229,3675.4,3674.8,0.28030973]
[1753193737544,2.72078796,3675.5,3674.9,1.07389737]
[1753193737744,2.72078796,3675.5,3675.0,5.03409737]
[1753193737912,2.72065852,3675.6,3675.0,5.48219737]
[1753193738108,0.8022,3676.1,3675.0,5.48219737]
[1753193738109,2.72087401,3675.3,3675.0,5.48219737]
[1753193738442,2.72083977,3675.4,3675.1,4.776]
[1753193738641,0.4592,3675.8,3675.2,4.776]
[1753193738642,2.72086632,3675.3,3675.2,4.776]
[1753193738848,2.72113952,3675.0,3674.4,0.8208]
[1753193739048,0.18334076,3676.0,3674.0,5.7218008]
[1753193739049,2.72144086,3674.6,3674.0,0.8208]
[1753193739348,0.27214409,3674.5,3674.1,8.772]
[1753193739518,2.72108843,3675.0,3674.1,4.0]
[1753193739849,0.8022,3675.2,3674.2,4.772]
[1753193740039,2.72114732,3675.0,3674.2,7.49366456]
[1753193740239,3.52314383,3675.2,3674.1,4.4481]
[1753193740240,3.52315385,3675.2,3674.1,4.4481]
[1753193740437,2.72074813,3675.5,3674.5,2.72138747]
[1753193740743,0.7962,3675.6,3674.6,4.768]
[1753193740961,0.136,3674.9,3674.4,2.72153276]
[1753193741118,0.136,3674.9,3674.7,4.766]
[1753193741312,0.136,3674.9,3674.4,2.72153276]
[1753193741313,0.136,3674.9,3674.8,4.765]
[1753193741730,0.136,3674.9,3674.1,0.4481]
[1753193741965,0.136,3674.9,3672.8,2.72269915]
[1753193741966,0.136,3674.6,3674.0,4.12670174]
[1753193742117,0.136,3674.6,3674.1,4.761]
[1753193742311,0.136,3674.6,3674.1,7.48274282]
[1753193742628,0.136,3674.6,3674.2,4.76]
[1753193742833,0.136,3674.6,3674.3,2.72159826]
[1753193743137,0.136,3674.6,3674.3,0.4481]
[1753193743340,0.136,3674.6,3674.2,7.48167488]
[1753193743538,0.136,3674.6,3674.4,0.4481]
[1753193744050,0.136,3674.6,3674.2,7.48165429]
[1753193744268,0.136,3674.6,3674.2,4.76]
[1753193744466,0.136,3674.6,3674.3,4.747]
[1753193744621,0.136,3674.6,3674.0,4.12672733]
[1753193744821,2.72140107,3674.6,3674.1,4.746]
[1753193745156,0.136,3674.4,3674.0,3.99072526]
[1753193745341,0.136,3674.4,3674.0,3.99071633]
[1753193745544,2.85760528,3674.4,3673.8,2.85797568]
[1753193745745,0.136,3674.4,3674.1,4.742]
[1753193745943,0.136,3674.4,3674.2,2.72167137]
[1753193746149,0.4612,3675.0,3674.4,2.72153114]
[1753193746150,0.002,3675.0,3674.4,2.72153114]
[1753193746446,2.85728425,3674.8,3674.5,4.739]
[1753193746648,2.72124523,3674.8,3674.6,4.738]
[1753193746853,2.72137317,3674.7,3674.0,2.72178007]
[1753193747163,0.136,3674.6,3674.4,2.72148511]
[1753193747380,0.002,3675.0,3674.9,2.72116248]
[1753193747524,0.002,3675.0,3674.9,7.6293741]
[1753193747724,0.002,3675.0,3674.9,8.05556248]
[1753193747943,0.002,3675.0,3674.9,9.21157355]
[1753193748174,0.002,3675.0,3674.9,9.46455195]
[1753193748477,0.002,3675.0,3674.9,8.30854088]
[1753193748639,0.002,3675.0,3674.9,3.11014088]
[1753193748972,0.002,3675.0,3674.9,7.8803525]
[1753193749131,0.002,3675.0,3674.9,7.85314088]
[1753193749322,0.002,3675.0,3674.9,8.30654088]
[1753193750539,1e-08,3675.0,3674.9,9.75977453]
[1753193750754,0.136,3676.0,3674.9,7.02661205]
[1753193750929,0.136,3676.0,3675.6,2.72059254]
[1753193751266,0.136,3676.0,3675.8,2.72044845]
[1753193751428,0.136,3676.0,3675.9,4.9819784]
[1753193751628,0.7848,3676.5,3675.9,4.9819784]
[1753193751629,3.50477846,3676.5,3675.9,4.9819784]
[1753193751830,0.136,3676.2,3676.0,0.2529784]
[1753193752181,0.136,3676.2,3676.1,0.2529784]
[1753193753684,3.0,3675.8,3673.0,0.4534]
[1753193753969,0.756,3675.7,3673.7,7.89513934]
[1753193754184,0.456,3675.7,3673.8,0.48061977]
[1753193754343,0.456,3675.7,3674.0,2.72176202]
[1753193754531,2.721004,3675.2,3674.1,0.4534]
[1753193754731,0.8181,3675.6,3674.2,2.72165979]
[1753193754963,2.72094551,3675.2,3674.3,4.732]
[1753193755451,0.54417515,3675.2,3674.1,0.4534]
[1753193755649,0.54417515,3675.2,3673.7,7.89513934]
[1753193755650,2.72154606,3674.4,3674.2,4.728]
[1753193755943,3.53875174,3675.6,3673.7,1.248]
[1753193755944,0.8181,3675.6,3673.8,4.02721977]
[1753193756154,2.72081745,3675.4,3674.3,0.4534]
[1753193756355,2.72071826,3675.5,3674.4,4.75521532]
[1753193756581,2.72101836,3675.1,3674.4,4.75521532]
[1753193756895,2.72106172,3675.1,3674.4,4.75521532]
[1753193757094,0.8181,3675.6,3674.4,0.02721532]
[1753193757247,2.72094645,3675.2,3674.3,0.4534]
[1753193757442,0.855474,3675.5,3673.9,3.0]
[1753193757689,2.72152455,3674.5,3674.0,4.728]
[1753193757847,2.72152455,3674.5,3674.1,4.728]
[1753193758268,2.72132999,3674.7,3674.1,4.728]
[1753193758446,2.72140751,3674.6,3674.1,4.728]
[1753193758648,0.456,3675.1,3673.8,3.0]
[1753193758843,2.72116248,3674.9,3673.6,6.53]
[1753193759045,1.11969745,3675.0,3673.7,4.75522051]
[1753193759383,0.802,3675.0,3673.7,4.75522051]
[1753193759585,0.456,3674.9,3673.8,4.728]
[1753193759803,0.456,3674.9,3673.6,6.53]
[1753193759947,2.72182906,3674.0,3673.9,4.728]
[1753193760154,0.456,3674.5,3673.9,4.728]
[1753193760487,0.802,3675.0,3674.1,2.72175498]
[1753193760658,0.816,3675.5,3674.2,0.4534]
[1753193760859,1.2672,3676.1,3674.4,0.8138]
[1753193761186,0.456,3676.0,3674.4,0.8138]
[1753193761488,2.72106514,3675.1,3674.5,4.729]
[1753193761781,2.7215572,3674.4,3673.9,0.4534]
[1753193761981,2.72160972,3674.3,3673.8,0.8036]
[1753193762185,0.456,3675.0,3673.8,0.8036]
[1753193762384,0.456,3675.0,3673.6,6.53]
[1753193762385,0.456,3675.0,3673.9,4.729]
[1753193762588,2.72182906,3674.0,3673.9,4.729]
[1753193762891,0.31769532,3674.9,3673.9,4.729]
[1753193762892,0.8261,3674.3,3673.9,4.729]
[1753193763064,2.72175666,3674.1,3673.9,4.729]
[1753193763261,2.72169292,3674.2,3673.9,4.729]
[1753193763593,2.72176354,3674.1,3673.9,4.729]
[1753193764007,2.72175498,3674.1,3673.9,9.439]
[1753193764178,2.72175498,3674.1,3674.0,4.71]
[1753193764501,2.72170316,3674.2,3674.0,4.71]
[1753193764662,2.72175498,3674.1,3674.0,4.71]
[1753193764863,2.72175498,3674.1,3674.0,9.439]
[1753193765059,2.7216847,3674.2,3674.0,4.729]
[1753193765288,2.72175498,3674.1,3674.0,4.729]
[1753193765490,0.456,3674.5,3674.0,4.729]
[1753193765798,0.7886,3674.6,3674.0,4.729]
[1753193765999,2.72166083,3674.3,3674.0,4.729]
[1753193766166,2.7215408,3674.4,3674.0,4.729]
[1753193766365,0.7886,3674.6,3674.0,4.729]
[1753193766687,0.136,3674.2,3674.0,4.729]
[1753193766866,0.136,3674.2,3674.0,7.90422019]
[1753193767067,0.136,3674.2,3674.1,7.88515498]
[1753193767268,0.39874896,3675.9,3674.1,7.88515498]
[1753193767269,0.136,3674.7,3674.2,0.7501]
[1753193767608,0.136,3674.9,3674.7,2.72123654]
[1753193767914,0.136,3674.9,3674.8,9.439]
[1753193769304,0.456,3674.9,3674.8,4.71]
[1753193769484,2.72116248,3674.9,3674.8,9.439]
[1753193769682,3.26538017,3674.9,3674.8,9.439]
[1753193770066,3.26538017,3674.9,3674.8,4.71]
[1753193770301,3.72138017,3674.9,3674.8,9.438]
[1753193770502,3.72138017,3674.9,3674.8,4.71]
[1753193770715,3.26538017,3674.9,3674.8,9.438]
[1753193771209,3.72138017,3674.9,3674.8,9.438]
[1753193771415,3.72138017,3674.9,3674.8,4.71]
[1753193771570,3.72138017,3674.9,3674.8,9.438]
[1753193771772,1.2278,3675.5,3674.8,9.438]
[1753193771971,2.72107576,3675.1,3674.8,9.438]
[1753193772215,1.2278,3675.5,3674.8,9.438]
[1753193772216,2.72094634,3675.2,3674.8,9.438]
[1753193772517,2.72103391,3675.1,3674.8,9.438]
[1753193772721,1.2278,3675.5,3674.8,9.438]
[1753193772722,0.7718,3675.5,3674.8,9.438]
[1753193772903,0.456,3675.9,3674.8,12.61263024]
[1753193773072,2.72076813,3675.5,3674.9,4.71]
[1753193773275,2.72081147,3675.4,3674.9,4.71]
[1753193773515,0.456,3675.9,3674.9,4.71]
[1753193773813,2.72064339,3675.7,3674.9,4.71]
[1753193774113,2.72072049,3675.5,3674.9,4.71]
[1753193774308,2.72084599,3675.4,3675.0,4.728]
[1753193774511,2.72071826,3675.5,3675.0,4.728]
[1753193774712,2.72079229,3675.4,3675.0,4.728]
[1753193774879,2.72049621,3675.8,3674.9,4.71]
[1753193775243,2.72108843,3675.0,3674.9,4.71]
[1753193775708,3.17708843,3675.0,3674.9,9.438]
[1753193776023,3.31089131,3675.0,3674.9,4.71]
[1753193776181,3.31089131,3675.0,3674.9,9.437]
[1753193776527,3.31089131,3675.0,3674.9,4.71]
[1753193776693,3.31089131,3675.0,3674.9,9.437]
[1753193776870,3.31089131,3675.0,3674.9,4.71]
[1753193777072,0.456,3675.6,3674.9,9.437]
[1753193777391,2.72101439,3675.1,3675.0,4.71]
[1753193778405,2.72060458,3675.7,3675.0,4.71]
[1753193778814,0.4318,3675.8,3675.0,4.71]
[1753193778985,0.4338,3676.2,3675.0,4.71]
[1753193779175,3.15404356,3676.2,3675.1,4.71]
[1753193779376,2.72049621,3675.8,3675.2,4.727]
[1753193779813,0.002,3676.2,3675.3,5.1614]
[1753193780017,0.136,3675.8,3675.4,0.47860792]
[1753193780236,0.136,3675.8,3675.7,2.72057023]
[1753193780524,0.136,3675.8,3675.7,3.17197023]
[1753193781788,0.136,3675.8,3675.3,4.71]
[1753193782091,2.72050991,3675.8,3675.4,4.725]
[1753193782418,0.8245,3676.2,3675.4,4.725]
[1753193782606,3.54470668,3676.2,3675.4,7.44576362]
[1753193782808,0.136,3675.6,3675.3,4.71]
[1753193783008,2.7206582,3675.6,3675.3,4.71]
[1753193783304,2.72074151,3675.5,3675.4,4.725]
[1753193783505,2.72079229,3675.4,3675.3,4.71]
[1753193783710,2.72079229,3675.4,3675.3,9.435]
[1753193784025,3.69673712,3675.4,3675.3,9.435]
[1753193784226,3.69673712,3675.4,3675.3,4.71]
[1753193784588,3.69673712,3675.4,3675.3,9.435]
[1753193785022,3.69673712,3675.4,3675.3,4.71]
[1753193785325,3.69673712,3675.4,3674.8,4.71]
[1753193785326,2.72116248,3674.9,3674.8,4.71]
[1753193785527,0.4318,3674.9,3673.7,0.7514]
[1753193785830,0.8293,3674.8,3673.3,0.7866]
[1753193785998,0.136,3673.7,3673.4,4.724]
[1753193786502,0.136,3673.7,3673.3,0.7866]
[1753193786687,0.136,3673.7,3673.5,4.724]
[1753193787370,0.7687,3674.3,3673.0,0.136]
[1753193787488,0.7687,3674.3,3672.8,0.758]
[1753193787489,2.72233952,3673.4,3672.8,0.758]
[1753193787686,0.136,3673.0,3672.9,4.0]
[1753193787916,2.85857455,3673.0,3672.5,6.667]
[1753193788114,2.72278651,3672.8,3672.6,4.724]
[1753193788299,2.72260466,3673.0,3672.6,4.724]
[1753193788501,0.136,3672.6,3672.5,6.531]
[1753193788897,2.85886663,3672.6,3672.5,4.725]
[1753193789123,2.85886663,3672.6,3672.5,0.001]
[1753193789344,3.29066663,3672.6,3672.5,0.001]
[1753193789629,4.67392534,3672.6,3672.5,0.001]
[1753193791615,4.67392534,3672.6,3672.5,1e-08]
[1753193791927,7.67392534,3672.6,3672.5,1e-08]
[1753193792132,37.67392534,3672.6,3672.5,1e-08]
[1753193792437,7.67392534,3672.6,3672.5,1e-08]
[1753193792797,22.17392534,3672.6,3672.5,1e-08]
[1753193794333,0.9611,3672.6,3672.5,1e-08]
[1753193794634,0.136,3672.6,3672.5,1e-08]
[1753193796135,0.136,3672.6,3672.5,3.17434078]
[1753193796308,0.136,3672.6,3672.5,3.20157018]
[1753193796909,0.136,3672.6,3672.5,7.92557018]
[1753193797229,0.136,3672.6,3672.5,8.97680479]
[1753193798956,14.5,3674.7,3672.5,8.97680479]
[1753193798957,0.136,3673.1,3673.0,2.72256201]
[1753193799126,0.136,3673.1,3673.0,7.44556201]
[1753193799328,0.136,3673.1,3673.0,9.8844]
[1753193799522,0.136,3673.1,3673.0,12.6069701]
[1753193800057,0.136,3673.1,3673.0,13.4275701]
[1753193800248,0.136,3673.1,3673.0,12.1545701]
[1753193800960,0.136,3673.1,3673.0,7.4325701]
[1753193801173,0.136,3673.1,3673.0,9.432]
[1753193801365,0.136,3673.1,3673.0,12.6059701]
[1753193801567,0.136,3673.1,3673.0,13.86656711]
[1753193805571,0.136,3673.1,3673.0,7.8839701]
[1753193805769,0.136,3673.1,3673.0,12.1525701]
[1753193807472,0.136,3673.1,3673.0,12.6081701]
[1753193807853,0.136,3673.1,3673.0,9.428]
[1753193808053,0.136,3673.1,3673.0,4.71]
[1753193808253,0.136,3673.1,3673.0,7.4405701]
[1753193808450,0.136,3673.1,3672.8,0.4556]
[1753193808715,0.136,3673.1,3672.9,2.72259261]
[1753193808984,0.136,3673.1,3673.0,2.7225701]
[1753193809579,0.136,3673.1,3673.0,4.718]
[1753193809784,0.136,3673.1,3672.6,0.8206]
[1753193809955,1.2216,3674.5,3672.7,5.34104792]
[1753193810142,1.2216,3674.5,3673.0,2.7225701]
[1753193810476,0.136,3673.2,3673.1,7.89506668]
[1753193811337,2.72167041,3674.3,3673.6,2.72210302]
[1753193811681,3.94311704,3674.5,3673.7,4.716]
[1753193811682,2.72182991,3674.0,3673.7,4.716]
[1753193811985,0.136,3673.6,3673.3,2.72234775]
[1753193812165,0.136,3673.6,3673.4,4.716]
[1753193812342,0.136,3673.6,3673.5,4.716]
[1753193812777,0.136,3673.6,3672.8,0.4556]
[1753193813076,0.136,3673.3,3673.2,2.72242186]